bitfinex/quotes_BTCUSD_20240823
["timestamp","ask_amount","ask_price","bid_price","bid_amount"]
[1724418219112,0.80413822,61214.0,61213.0,0.14257447]
[1724418220075,0.85310124,61214.0,61213.0,0.14257447]
[1724418220279,0.80413822,61214.0,61213.0,0.14257447]
[1724418222222,1.13086022,61214.0,61213.0,0.14257447]
[1724418222460,0.80413822,61214.0,61213.0,0.14257447]
[1724418222684,0.80251719,61214.0,61213.0,0.14257447]
[1724418223172,0.80251719,61214.0,61213.0,0.16242011]
[1724418223616,0.80251719,61214.0,61213.0,0.14257447]
[1724418224081,0.96752017,61214.0,61213.0,0.16242011]
[1724418224291,1.31724217,61214.0,61213.0,0.14257447]
[1724418224507,1.31724217,61214.0,61213.0,0.13757447]
[1724418225990,1.39064571,61214.0,61213.0,0.13757447]
[1724418226161,1.29424217,61214.0,61213.0,0.13757447]
[1724418226362,1.34317745,61214.0,61213.0,0.13757447]
[1724418226653,1.29424217,61214.0,61213.0,0.13757447]
[1724418229362,1.29424217,61214.0,61213.0,0.06127447]
[1724418235086,1.62096417,61214.0,61213.0,0.06127447]
[1724418235287,1.29424217,61214.0,61213.0,0.06127447]
[1724418237369,1.62096417,61214.0,61213.0,0.06127447]
[1724418237636,1.29424217,61214.0,61213.0,0.06127447]
[1724418238552,1.34317845,61214.0,61213.0,0.06127447]
[1724418238788,1.29424217,61214.0,61213.0,0.06127447]
[1724418240459,1.34317845,61214.0,61213.0,0.06127447]
[1724418240668,1.66990045,61214.0,61213.0,0.06127447]
[1724418240883,1.34317845,61214.0,61213.0,0.06127447]
[1724418241855,1.34317845,61214.0,61213.0,0.00037447]
[1724418241856,1.37014217,61214.0,61213.0,0.00037447]
[1724418242031,1.69686417,61214.0,61213.0,0.00037447]
[1724418242224,1.37014217,61214.0,61213.0,0.00037447]
[1724418242436,1.69686417,61214.0,61213.0,0.00037447]
[1724418243227,1.7967721,61214.0,61213.0,0.00037447]
[1724418243378,1.82324908,61214.0,61213.0,0.00037447]
[1724418243582,1.70086417,61214.0,61213.0,0.00037447]
[1724418244572,1.88066417,61214.0,61213.0,0.00037447]
[1724418244768,2.20738617,61214.0,61213.0,0.00037447]
[1724418245357,2.19438617,61214.0,61213.0,0.00037447]
[1724418245762,2.20838617,61214.0,61213.0,0.00037447]
[1724418245970,2.19438617,61214.0,61213.0,0.00037447]
[1724418246176,2.18038617,61214.0,61213.0,0.00037447]
[1724418246403,2.19434513,61214.0,61213.0,0.00037447]
[1724418247528,2.52106713,61214.0,61213.0,0.00037447]
[1724418247745,2.07976097,61214.0,61213.0,0.00037447]
[1724418247960,2.20834513,61214.0,61213.0,0.00037447]
[1724418248254,2.15154513,61214.0,61213.0,0.00037447]
[1724418250926,2.31701411,61214.0,61213.0,0.00037447]
[1724418251131,2.15154513,61214.0,61213.0,0.00037447]
[1724418251978,2.20834513,61214.0,61213.0,0.00037447]
[1724418252536,2.15154513,61214.0,61213.0,0.00037447]
[1724418252719,2.14754513,61214.0,61213.0,0.00037447]
[1724418252921,2.1246131,61214.0,61213.0,0.00037447]
[1724418253143,2.07564513,61214.0,61213.0,0.00037447]
[1724418253297,2.24119409,61214.0,61213.0,0.00037447]
[1724418253472,2.07564513,61214.0,61213.0,0.00037447]
[1724418254266,2.10127203,61214.0,61213.0,0.00037447]
[1724418254527,1.40149709,61214.0,61213.0,0.14347447]
[1724418254730,1.63759251,61214.0,61213.0,0.14347447]
[1724418254927,1.49045435,61214.0,61213.0,0.14347447]
[1724418255967,1.59045435,61214.0,61213.0,0.14347447]
[1724418256171,1.73759915,61214.0,61213.0,0.14347447]
[1724418256777,1.90157793,61214.0,61213.0,0.06347447]
[1724418257026,1.75443313,61214.0,61213.0,0.06347447]
[1724418259087,1.90155485,61214.0,61213.0,0.06347447]
[1724418259290,1.77743313,61214.0,61213.0,0.05777447]
[1724418259467,1.77743313,61214.0,61213.0,0.05677447]
[1724418259817,1.77743313,61214.0,61213.0,0.05714894]
[1724418260486,1.77743313,61214.0,61213.0,0.05469694]
[1724418260692,1.92455485,61214.0,61213.0,0.05469694]
[1724418260892,1.77743313,61214.0,61213.0,0.05469694]
[1724418261098,1.85703313,61214.0,61213.0,0.00037447]
[1724418261684,2.18375513,61214.0,61213.0,0.00037447]
[1724418272270,2.18375513,61214.0,61209.0,0.0633]
[1724418272271,0.27895516,61210.0,61209.0,0.0633]
[1724418272473,0.56328181,61210.0,61209.0,0.0633]
[1724418272678,1.54351081,61210.0,61209.0,0.0633]
[1724418273370,1.55751081,61210.0,61209.0,0.0633]
[1724418274612,1.44292665,61210.0,61209.0,0.0633]
[1724418274872,1.57151081,61210.0,61209.0,0.0633]
[1724418275280,1.69401709,61210.0,61209.0,0.0633]
[1724418275477,1.57151081,61210.0,61209.0,0.0633]
[1724418275673,1.69402226,61210.0,61209.0,0.0633]
[1724418276079,1.57151081,61210.0,61209.0,0.0633]
[1724418277281,1.69402836,61210.0,61209.0,0.0633]
[1724418277509,1.57151081,61210.0,61209.0,0.0633]
[1724418277653,1.57151081,61210.0,61209.0,0.146]
[1724418278065,1.69303576,61210.0,61209.0,0.146]
[1724418278671,1.45812793,61210.0,61209.0,0.146]
[1724418279340,1.43362967,61210.0,61209.0,0.146]
[1724418279762,1.33560298,61210.0,61209.0,0.146]
[1724418279932,1.43362967,61210.0,61209.0,0.146]
[1724418280139,1.008229,61210.0,61209.0,0.146]
[1724418280540,1.22061515,61210.0,61209.0,0.146]
[1724418280742,1.1716,61210.0,61209.0,0.146]
[1724418280917,0.844857,61210.0,61209.0,0.146]
[1724418281509,0.89387215,61210.0,61209.0,0.146]
[1724418281728,0.844857,61210.0,61209.0,0.146]
[1724418283110,1.04873845,61210.0,61209.0,0.146]
[1724418283310,0.9997233,61210.0,61209.0,0.146]
[1724418284123,1.04874921,61210.0,61209.0,0.146]
[1724418284325,1.11430746,61210.0,61209.0,0.146]
[1724418284909,1.18784177,61210.0,61209.0,0.146]
[1724418285110,1.11430746,61210.0,61209.0,0.146]
[1724418285307,1.18785267,61210.0,61209.0,0.146]
[1724418285467,1.11430746,61210.0,61209.0,0.146]
[1724418286285,1.18785267,61210.0,61209.0,0.146]
[1724418286491,1.12769299,61210.0,61209.0,0.146]
[1724418287120,1.2012382,61210.0,61209.0,0.146]
[1724418287326,1.12769299,61210.0,61209.0,0.146]
[1724418287729,1.2012382,61210.0,61209.0,0.146]
[1724418289077,1.12769299,61210.0,61209.0,0.146]
[1724418289904,1.17672342,61210.0,61209.0,0.146]
[1724418290105,1.12769299,61210.0,61209.0,0.146]
[1724418290825,1.22575449,61210.0,61209.0,0.146]
[1724418291029,1.12769299,61210.0,61209.0,0.146]
[1724418292067,1.25027042,61210.0,61209.0,0.146]
[1724418292269,1.12769299,61210.0,61209.0,0.0633]
[1724418293633,1.09540923,61210.0,61209.0,0.1404]
[1724418294027,1.07089278,61210.0,61209.0,0.1404]
[1724418294246,1.03298909,61210.0,61209.0,0.12701447]
[1724418294428,0.95944116,61210.0,61209.0,0.12701447]
[1724418295028,1.03298742,61210.0,61209.0,0.12701447]
[1724418295451,1.10653303,61210.0,61209.0,0.12701447]
[1724418295687,1.03298677,61210.0,61209.0,0.12701447]
[1724418296067,1.03298629,61210.0,61209.0,0.12701447]
[1724418296427,0.91840213,61210.0,61209.0,0.12701447]
[1724418296636,0.91840147,61210.0,61209.0,0.12701447]
[1724418297020,0.844857,61210.0,61209.0,0.12701447]
[1724418297486,1.00819602,61210.0,61209.0,0.12701447]
[1724418297797,1.08174164,61210.0,61209.0,0.12701447]
[1724418298043,1.00819602,61210.0,61209.0,0.12701447]
[1724418298677,1.08174056,61210.0,61209.0,0.12701447]
[1724418299778,1.06774056,61210.0,61209.0,0.12701447]
[1724418299992,1.08174056,61210.0,61209.0,0.12701447]
[1724418300200,1.06774056,61210.0,61209.0,0.12701447]
[1724418300334,1.06773888,61210.0,61209.0,0.12701447]
[1724418300715,1.20683733,61210.0,61209.0,0.04991447]
[1724418300849,1.22083733,61210.0,61209.0,0.04991447]
[1724418301059,0.32677,61205.0,61204.0,0.0623]
[1724418301256,0.71836849,61205.0,61204.0,0.0623]
[1724418301487,1.04513849,61205.0,61204.0,0.0623]
[1724418301644,1.14319564,61205.0,61204.0,0.0623]
[1724418302066,0.409185,61203.0,61192.0,0.0793]
[1724418302269,0.326813,61197.0,61192.0,0.0793]
[1724418302474,0.163409,61196.0,61194.0,0.0793]
[1724418302673,0.163409,61196.0,61195.0,0.0605]
[1724418302892,0.163409,61196.0,61195.0,0.07744729]
[1724418303277,0.04903624,61200.0,61197.0,0.1404]
[1724418303481,0.326793,61201.0,61196.0,0.1404]
[1724418303682,0.326793,61201.0,61193.0,0.00326792]
[1724418303683,0.1634,61200.0,61199.0,0.0793]
[1724418304082,0.58816056,61200.0,61199.0,0.09622871]
[1724418304307,0.58816056,61200.0,61199.0,0.16072871]
[1724418304869,0.59116056,61200.0,61199.0,0.1438]
[1724418305335,0.6401968,61200.0,61199.0,0.1438]
[1724418305589,0.26436356,61200.0,61199.0,0.1438]
[1724418305832,0.1664,61200.0,61199.0,0.1438]
[1724418306038,0.003,61200.0,61199.0,0.1438]
[1724418306246,0.003,61200.0,61199.0,0.32412971]
[1724418306448,0.003,61200.0,61199.0,0.16072871]
[1724418307237,0.009,61200.0,61199.0,0.16072871]
[1724418308673,0.163393,61202.0,61199.0,0.16072871]
[1724418308875,0.148393,61202.0,61200.0,0.0653]
[1724418310001,0.148393,61202.0,61201.0,0.07771942]
[1724418310209,0.16339,61203.0,61201.0,0.01691942]
[1724418310410,0.163386,61205.0,61203.0,0.0608]
[1724418310941,0.163386,61205.0,61204.0,0.01690549]
[1724418311152,0.163386,61205.0,61204.0,0.0652]
[1724418311796,0.22541676,61205.0,61204.0,0.0652]
[1724418312006,0.176386,61205.0,61204.0,0.0652]
[1724418312208,0.163386,61205.0,61204.0,0.0652]
[1724418312414,0.176386,61205.0,61204.0,0.0662]
[1724418312661,0.22541676,61205.0,61204.0,0.0662]
[1724418312975,0.23541676,61205.0,61204.0,0.0662]
[1724418313396,0.23541676,61205.0,61204.0,0.309188]
[1724418313397,0.013,61205.0,61204.0,0.309188]
[1724418313607,0.013,61205.0,61204.0,0.16270549]
[1724418313807,0.023,61205.0,61204.0,0.16370549]
[1724418317627,0.023,61205.0,61204.0,0.65386949]
[1724418317829,0.023,61205.0,61204.0,0.98064549]
[1724418318563,0.023,61205.0,61204.0,0.97964549]
[1724418318564,0.01,61205.0,61204.0,0.97964549]
[1724418318810,0.04903076,61208.0,61207.0,0.309279]
[1724418319234,0.04903076,61208.0,61207.0,0.32617056]
[1724418320758,0.04903076,61208.0,61207.0,0.65293056]
[1724418320967,0.04903076,61209.0,61208.0,0.0626]
[1724418321380,0.04903988,61209.0,61208.0,0.0626]
[1724418321802,0.04903988,61209.0,61208.0,0.07948692]
[1724418323239,0.04903988,61209.0,61208.0,0.24486392]
[1724418323240,0.06603988,61209.0,61208.0,0.24486392]
[1724418323472,0.06603988,61209.0,61208.0,1.58488006]
[1724418323473,0.017,61209.0,61208.0,1.58488006]
[1724418323684,0.017,61209.0,61208.0,1.59933288]
[1724418323895,0.017,61209.0,61208.0,1.92608688]
[1724418324167,0.017,61209.0,61208.0,2.02708688]
[1724418324345,0.017,61209.0,61208.0,2.02908688]
[1724418324597,0.007,61209.0,61208.0,2.02808688]
[1724418325013,0.007,61209.0,61208.0,2.03608688]
[1724418325014,0.008,61209.0,61208.0,2.03608688]
[1724418325236,0.001,61209.0,61208.0,2.02708688]
[1724418325433,0.008,61209.0,61208.0,2.02808688]
[1724418325609,0.009,61209.0,61208.0,2.03608688]
[1724418325817,0.008,61209.0,61208.0,2.02808688]
[1724418326023,0.001,61209.0,61208.0,2.02708688]
[1724418326249,0.003,61209.0,61208.0,2.04008688]
[1724418326664,0.003,61209.0,61208.0,2.03708688]
[1724418326863,4e-05,61224.0,61223.0,0.638011]
[1724418327066,4e-05,61224.0,61223.0,1.12868798]
[1724418327265,4e-05,61224.0,61223.0,1.14550528]
[1724418328286,0.00804,61224.0,61223.0,1.14650528]
[1724418328712,0.01304,61224.0,61223.0,1.14750528]
[1724418331641,0.01304,61224.0,61223.0,1.47417928]
[1724418331952,0.01304,61224.0,61223.0,1.46958899]
[1724418332578,0.00504,61224.0,61223.0,1.46758899]
[1724418332774,4e-05,61224.0,61223.0,1.46758899]
[1724418332991,0.00604,61224.0,61223.0,1.46758899]
[1724418333733,0.00604,61224.0,61223.0,0.07862701]
[1724418333983,0.18143642,61224.0,61223.0,0.01222701]
[1724418334436,0.18143642,61224.0,61219.0,0.388195]
[1724418334437,0.163337,61223.0,61219.0,0.0615]
[1724418334815,0.163337,61223.0,61219.0,0.224847]
[1724418335024,0.01810242,61224.0,61220.0,0.163344]
[1724418335425,0.01210242,61224.0,61220.0,0.17557815]
[1724418335624,0.001,61223.0,61220.0,0.17557815]
[1724418335962,0.17543642,61224.0,61220.0,0.17557815]
[1724418336369,0.07544736,61223.0,61220.0,0.17557915]
[1724418337399,0.23878436,61223.0,61220.0,0.01223415]
[1724418337611,0.490027,61221.0,61220.0,0.01223415]
[1724418337823,0.163348,61219.0,61216.0,0.0625]
[1724418339116,0.326685,61221.0,61216.0,0.0625]
[1724418339327,0.490027,61221.0,61220.0,0.001]
[1724418339956,0.163348,61219.0,61216.0,0.0625]
[1724418340187,0.008,61219.0,61216.0,0.226855]
[1724418340302,0.008,61219.0,61217.0,0.163352]
[1724418340519,0.005,61219.0,61216.0,0.0635]
[1724418340723,0.005,61219.0,61216.0,0.226855]
[1724418340973,0.005,61219.0,61218.0,0.41943416]
[1724418341172,0.005,61219.0,61218.0,0.74613516]
[1724418341345,0.005,61219.0,61218.0,1.07283616]
[1724418341747,0.005,61221.0,61220.0,0.163345]
[1724418341950,0.005,61221.0,61220.0,0.55920141]
[1724418342226,0.008,61221.0,61220.0,0.556935]
[1724418342568,4e-05,61224.0,61220.0,0.39259]
[1724418342985,4e-05,61224.0,61222.0,0.163339]
[1724418343856,0.163375,61224.0,61220.0,0.230244]
[1724418344032,4e-05,61224.0,61222.0,0.163338]
[1724418344239,0.00804,61224.0,61222.0,0.164338]
[1724418344803,0.00804,61224.0,61222.0,0.001]
[1724418345221,0.01904,61224.0,61222.0,0.002]
[1724418345668,0.01104,61224.0,61222.0,0.001]
[1724418345871,0.01904,61224.0,61222.0,0.001]
[1724418346227,0.163337,61223.0,61222.0,0.001]
[1724418346620,0.245737,61223.0,61222.0,0.001]
[1724418346754,0.01904,61224.0,61223.0,0.0627]
[1724418346955,0.01104,61224.0,61223.0,0.0627]
[1724418347156,0.01904,61224.0,61223.0,0.226037]
[1724418347358,0.01904,61224.0,61223.0,0.0627]
[1724418347749,0.00804,61224.0,61223.0,0.0627]
[1724418348182,0.00804,61224.0,61223.0,0.55597749]
[1724418348553,0.00804,61224.0,61223.0,1.44556198]
[1724418348754,0.01904,61224.0,61223.0,1.44656198]
[1724418348946,0.01104,61224.0,61223.0,1.44656198]
[1724418349157,0.01104,61224.0,61223.0,1.44756198]
[1724418349158,0.01904,61224.0,61223.0,1.44756198]
[1724418349593,0.00804,61224.0,61223.0,1.44656198]
[1724418349785,0.00204,61224.0,61223.0,1.44556198]
[1724418351157,4e-05,61224.0,61223.0,1.44556198]
[1724418351498,0.00204,61224.0,61223.0,1.44556198]
[1724418357097,0.00204,61224.0,61223.0,1.46328075]
[1724418357621,0.00204,61224.0,61223.0,1.44556198]
[1724418357828,0.00204,61224.0,61223.0,1.46327993]
[1724418358059,4e-05,61224.0,61223.0,1.46327993]
[1724418358481,4e-05,61224.0,61223.0,1.46727993]
[1724418358900,4e-05,61224.0,61223.0,1.46427993]
[1724418359505,0.00204,61224.0,61223.0,1.46427993]
[1724418359923,0.00204,61224.0,61223.0,1.44656198]
[1724418360119,0.00204,61224.0,61223.0,1.46428019]
[1724418360363,0.00204,61224.0,61223.0,1.48199608]
[1724418360604,0.00204,61224.0,61223.0,1.46427787]
[1724418361233,0.00204,61224.0,61223.0,1.44656198]
[1724418361379,0.00204,61224.0,61223.0,0.001]
[1724418362020,0.00204,61224.0,61223.0,0.164337]
[1724418362383,0.00204,61224.0,61223.0,0.001]
[1724418362583,0.0758344,61224.0,61223.0,0.001]
[1724418362873,0.3180684,61224.0,61223.0,0.001]
[1724418363588,0.08094,61224.0,61223.0,0.001]
[1724418364586,0.00204,61224.0,61223.0,0.164337]
[1724418364795,0.00204,61224.0,61223.0,0.88655137]
[1724418365240,0.00204,61224.0,61223.0,0.89877838]
[1724418365591,0.00204,61224.0,61223.0,1.14438136]
[1724418365831,0.00204,61224.0,61223.0,1.46778899]
[1724418370340,0.00204,61224.0,61223.0,1.05951499]
[1724418371245,0.00204,61224.0,61223.0,1.13691499]
[1724418372868,0.00204,61224.0,61223.0,1.46358899]
[1724418373921,0.00204,61224.0,61223.0,1.13691499]
[1724418374334,0.00204,61224.0,61223.0,1.46358899]
[1724418374568,0.00204,61224.0,61223.0,1.38618899]
[1724418374745,0.00204,61224.0,61223.0,1.37396198]
[1724418374946,0.00204,61224.0,61223.0,1.38619741]
[1724418375693,0.00204,61224.0,61223.0,1.05952341]
[1724418377382,0.00204,61224.0,61223.0,0.99392341]
[1724418377820,0.00204,61224.0,61223.0,1.13972341]
[1724418377991,0.00160653,61224.0,61223.0,1.13972341]
[1724418378344,0.00160653,61224.0,61223.0,1.47863284]
[1724418379175,0.00160653,61224.0,61223.0,1.15195884]
[1724418379593,0.00160653,61224.0,61223.0,1.47863284]
[1724418380749,0.00160653,61224.0,61223.0,1.4963677]
[1724418381197,0.00160653,61224.0,61223.0,1.47863284]
[1724418382191,0.00160653,61224.0,61223.0,1.4963677]
[1724418382599,0.00160653,61224.0,61223.0,1.5993677]
[1724418383023,0.00160653,61224.0,61223.0,2.4229977]
[1724418383226,0.00160653,61224.0,61223.0,2.36103475]
[1724418383431,0.00160653,61224.0,61223.0,1.9260417]
[1724418384060,0.00160653,61224.0,61223.0,2.02435899]
[1724418384304,0.00160653,61224.0,61223.0,2.36099446]
[1724418384505,0.00160653,61224.0,61223.0,1.99878029]
[1724418384710,0.00160653,61224.0,61223.0,2.73750006]
[1724418384912,4e-05,61235.0,61234.0,1.469767]
[1724418385151,4e-05,61235.0,61234.0,2.1812915]
[1724418385342,4e-05,61235.0,61234.0,2.19350073]
[1724418386149,0.00104,61235.0,61234.0,2.20050073]
[1724418386504,0.00204,61235.0,61234.0,2.21150073]
[1724418386651,0.00204,61235.0,61234.0,2.54011573]
[1724418386855,0.00204,61235.0,61234.0,2.23450073]
[1724418387481,0.00204,61235.0,61234.0,2.23650073]
[1724418388537,0.00204,61235.0,61234.0,2.24385506]
[1724418389567,0.00204,61235.0,61234.0,2.23985506]
[1724418390830,0.00204,61235.0,61234.0,1.5209344]
[1724418391096,0.00204,61235.0,61234.0,1.50321854]
[1724418393165,0.00204,61235.0,61234.0,1.49586421]
[1724418395636,0.00204,61235.0,61234.0,1.57346421]
[1724418397093,0.00204,61235.0,61234.0,1.91779867]
[1724418397266,0.00204,61235.0,61234.0,1.91879867]
[1724418397466,0.00204,61235.0,61234.0,1.91779867]
[1724418397667,0.00204,61235.0,61234.0,1.91979867]
[1724418397867,0.00204,61235.0,61234.0,1.92079867]
[1724418398580,0.00204,61235.0,61234.0,1.91779867]
[1724418399362,0.00204,61235.0,61234.0,1.90007921]
[1724418399947,0.00204,61235.0,61234.0,1.49586421]
[1724418400198,0.00204,61235.0,61234.0,1.10774921]
[1724418400422,0.07734,61235.0,61234.0,0.02720923]
[1724418400621,0.07734,61235.0,61234.0,0.19051623]
[1724418400828,0.07734,61235.0,61234.0,0.02720923]
[1724418401876,0.07634,61235.0,61234.0,0.01920923]
[1724418402083,0.566255,61235.0,61234.0,0.01920923]
[1724418402290,0.62178094,61235.0,61234.0,0.009]
[1724418402494,0.62078094,61235.0,61234.0,0.002]
[1724418402873,0.0794,61233.0,61229.0,0.16332]
[1724418403050,0.0794,61233.0,61230.0,0.163318]
[1724418405379,0.0884,61233.0,61230.0,0.164318]
[1724418405603,0.251711,61233.0,61230.0,0.001]
[1724418405801,0.0884,61233.0,61231.0,0.01221637]
[1724418406569,0.0884,61233.0,61231.0,0.17553137]
[1724418406777,0.0794,61233.0,61231.0,0.01221637]
[1724418407187,0.0884,61233.0,61231.0,0.01321637]
[1724418408446,0.2277689,61232.0,61231.0,0.01221637]
[1724418408660,0.163315,61231.0,61230.0,0.001]
[1724418408860,0.243215,61231.0,61230.0,0.01321875]
[1724418409101,0.243215,61231.0,61225.0,0.16333]
[1724418409102,0.406531,61231.0,61225.0,0.16333]
[1724418409301,0.163321,61229.0,61225.0,0.16333]
[1724418409508,0.0799,61228.0,61225.0,0.16333]
[1724418410569,0.0799,61228.0,61226.0,0.163328]
[1724418410797,0.0799,61228.0,61224.0,0.326664]
[1724418410993,0.0799,61228.0,61225.0,0.326662]
[1724418411276,0.0859,61228.0,61227.0,0.163326]
[1724418411458,0.0799,61228.0,61227.0,0.163326]
[1724418411807,0.0799,61228.0,61226.0,0.163329]
[1724418412015,0.0859,61228.0,61226.0,0.164329]
[1724418412355,0.0839,61228.0,61225.0,0.163331]
[1724418412563,0.326659,61226.0,61223.0,0.01223543]
[1724418412772,0.1464,61224.0,61223.0,0.01223543]
[1724418413843,0.636403,61224.0,61223.0,0.01223543]
[1724418414065,0.38074687,61224.0,61223.0,0.01223543]
[1724418414688,0.38274687,61224.0,61223.0,0.01223543]
[1724418415098,0.70941587,61224.0,61223.0,0.01223543]
[1724418415650,1.03608487,61224.0,61223.0,0.01223543]
[1724418416622,0.70941587,61224.0,61223.0,0.01223543]
[1724418419315,1.03608487,61224.0,61223.0,0.01223543]
[1724418420976,1.36275387,61224.0,61223.0,0.01223543]
[1724418423077,1.52675685,61224.0,61223.0,0.01223543]
[1724418423274,1.54975685,61224.0,61223.0,0.01223543]
[1724418423486,1.55075685,61224.0,61223.0,0.01223543]
[1724418424008,1.54975685,61224.0,61223.0,0.01223543]
[1724418424316,1.55075685,61224.0,61223.0,0.01223543]
[1724418430958,1.13007498,61224.0,61223.0,0.01223543]
[1724418431255,1.12907498,61224.0,61223.0,0.01223543]
[1724418431502,1.13007498,61224.0,61223.0,0.01223543]
[1724418431947,1.12907498,61224.0,61223.0,0.01223543]
[1724418432180,1.13007498,61224.0,61223.0,0.01223543]
[1724418432387,0.965072,61224.0,61223.0,0.01223543]
[1724418432594,0.571903,61224.0,61223.0,0.01223543]
[1724418432801,0.0819,61224.0,61223.0,0.01223543]
[1724418433026,0.002,61224.0,61223.0,0.07273543]
[1724418433237,0.002,61224.0,61223.0,0.56274643]
[1724418433642,0.002,61224.0,61223.0,0.88942043]
[1724418435707,0.002,61224.0,61223.0,1.21609443]
[1724418436136,0.002,61224.0,61223.0,0.23607243]
[1724418436558,0.002,61224.0,61223.0,0.56274643]
[1724418436773,0.002,61224.0,61223.0,0.88942043]
[1724418439488,0.002,61224.0,61223.0,0.17557243]
[1724418439687,0.0824,61224.0,61223.0,0.01223543]
[1724418440594,0.245734,61224.0,61223.0,0.01223543]
[1724418440747,0.6298036,61224.0,61223.0,0.01223543]
[1724418441220,0.3031346,61224.0,61223.0,0.01223543]
[1724418441652,0.6298036,61224.0,61223.0,0.01223543]
[1724418441870,0.3031346,61224.0,61223.0,0.01223543]
[1724418442454,0.245734,61224.0,61223.0,0.01223543]
[1724418443216,0.572403,61224.0,61223.0,0.01223543]
[1724418443881,0.245734,61224.0,61223.0,0.01223543]
[1724418447738,0.2713513,61224.0,61223.0,0.01223543]
[1724418449116,0.92631033,61224.0,61223.0,0.01223543]
[1724418449316,1.0638276,61224.0,61223.0,0.01223543]
[1724418450610,1.1262276,61224.0,61223.0,0.01223543]
[1724418451751,0.9246893,61224.0,61223.0,0.01223543]
[1724418451975,0.1909513,61224.0,61223.0,0.01223543]
[1724418452152,0.0276173,61224.0,61223.0,0.01223543]
[1724418452971,0.0276173,61224.0,61223.0,0.17557243]
[1724418453174,0.0276173,61224.0,61223.0,0.01223543]
[1724418454107,0.0276173,61224.0,61223.0,0.17557243]
[1724418454316,0.0276173,61224.0,61223.0,0.01223543]
[1724418455225,0.0276173,61224.0,61223.0,0.50224643]
[1724418455558,0.0276173,61224.0,61223.0,0.82892043]
[1724418455728,0.0276173,61224.0,61223.0,0.97002043]
[1724418456109,0.0276173,61224.0,61223.0,1.29669443]
[1724418456314,0.0276173,61224.0,61223.0,1.46069741]
[1724418456593,0.002,61224.0,61223.0,1.46069741]
[1724418458034,0.02561428,61228.0,61227.0,0.816632]
[1724418458671,0.02561428,61228.0,61227.0,1.143285]
[1724418458987,0.02561428,61228.0,61227.0,1.208585]
[1724418460136,0.003,61228.0,61227.0,1.283985]
[1724418460359,0.004,61228.0,61227.0,1.77564098]
[1724418460535,0.004,61228.0,61227.0,1.77764098]
[1724418460738,0.004,61228.0,61227.0,1.87764098]
[1724418460981,0.004,61228.0,61227.0,1.89537114]
[1724418461180,0.003,61228.0,61227.0,1.89537114]
[1724418461388,4e-05,61235.0,61234.0,1.143152]
[1724418461617,4e-05,61235.0,61234.0,2.1784868]
[1724418463470,4e-05,61235.0,61234.0,2.16075664]
[1724418463687,4e-05,61235.0,61234.0,2.18148397]
[1724418463863,4e-05,61235.0,61234.0,2.19048397]
[1724418463864,0.00104,61235.0,61234.0,2.19048397]
[1724418464445,0.00204,61235.0,61234.0,2.20148397]
[1724418464690,0.00104,61235.0,61234.0,2.19248397]
[1724418464898,0.00204,61235.0,61234.0,2.19848397]
[1724418465759,0.00204,61235.0,61234.0,2.19948397]
[1724418466344,0.00204,61235.0,61234.0,2.20148397]
[1724418466541,0.00104,61235.0,61234.0,2.19248397]
[1724418466792,0.00204,61235.0,61234.0,2.20148397]
[1724418467085,0.00204,61235.0,61234.0,2.20611065]
[1724418467217,0.00204,61235.0,61234.0,2.18838332]
[1724418469054,0.00204,61235.0,61234.0,2.18938332]
[1724418469617,0.00204,61235.0,61234.0,2.20153333]
[1724418469823,0.00204,61235.0,61234.0,2.20353333]
[1724418474797,0.00204,61235.0,61234.0,2.55514833]
[1724418475195,0.00204,61235.0,61234.0,2.57287351]
[1724418475590,4e-05,61255.0,61254.0,0.816272]
[1724418475848,4e-05,61255.0,61254.0,1.37248398]
[1724418476047,4e-05,61255.0,61254.0,1.38458638]
[1724418476691,0.08244,61255.0,61254.0,0.0121024]
[1724418476912,0.586438,61255.0,61254.0,0.0121024]
[1724418477112,0.0824,61253.0,61250.0,0.163264]
[1724418477240,0.245657,61253.0,61250.0,0.163264]
[1724418477444,0.245657,61253.0,61249.0,0.163267]
[1724418477647,0.0824,61253.0,61250.0,0.163264]
[1724418478046,0.0824,61253.0,61247.0,0.326544]
[1724418478274,0.245657,61253.0,61249.0,0.163266]
[1724418478647,0.245657,61253.0,61250.0,0.163264]
[1724418479496,0.0874,61253.0,61251.0,0.01210954]
[1724418479694,0.0904,61253.0,61251.0,0.01210954]
[1724418480066,0.253658,61253.0,61251.0,0.01210954]
[1724418480194,0.250658,61253.0,61251.0,0.01210954]
[1724418480398,0.245658,61253.0,61249.0,0.163266]
[1724418480743,0.253658,61253.0,61249.0,0.163266]
[1724418480970,0.253658,61253.0,61250.0,0.01211192]
[1724418481167,0.250658,61253.0,61250.0,0.01211192]
[1724418481390,0.0904,61253.0,61250.0,0.01211192]
[1724418481599,0.253657,61253.0,61250.0,0.163264]
[1724418481793,0.1484195,61253.0,61242.0,0.0645]
[1724418481957,0.163263,61251.0,61247.0,0.163272]
[1724418482179,0.0904,61253.0,61249.0,0.163265]
[1724418482180,0.253657,61253.0,61249.0,0.163265]
[1724418482335,0.248657,61253.0,61249.0,0.163265]
[1724418482740,0.253657,61253.0,61249.0,0.163265]
[1724418482978,0.250657,61253.0,61249.0,0.163265]
[1724418483232,0.0874,61253.0,61248.0,0.163268]
[1724418483406,0.16326,61252.0,61248.0,0.163268]
[1724418483643,0.1409,61251.0,61248.0,0.163268]
[1724418483766,0.304162,61251.0,61248.0,0.163268]
[1724418483990,0.243366,61250.0,61246.0,0.163273]
[1724418484190,0.0801,61249.0,61245.0,0.163278]
[1724418484512,0.0801,61249.0,61242.0,0.326571]
[1724418484513,0.0757,61245.0,61242.0,0.163285]
[1724418484666,0.0757,61245.0,61243.0,0.163283]
[1724418484870,0.0757,61245.0,61241.0,0.33418538]
[1724418485070,0.0757,61245.0,61242.0,0.326572]
[1724418485276,0.0757,61245.0,61243.0,0.163283]
[1724418486160,0.0757,61245.0,61242.0,0.326572]
[1724418486382,0.0757,61245.0,61243.0,0.163282]
[1724418486707,0.0837,61245.0,61243.0,0.164282]
[1724418486967,0.0757,61245.0,61243.0,0.163282]
[1724418487170,0.0827,61245.0,61243.0,0.164282]